[Event "Mistrovství Čech mládeže 2023 - HD16"]
[Site "Harrachov, Czech Republic"]
[Date "2023.10.27"]
[Round "8.16"]
[White "Dobsa, Emma"]
[Black "Kohm, Patrik"]
[Result "1-0"]
[TimeControl "90m + 30s"]
[WhiteElo "1616"]
[BlackElo "1475"]

1. e4 {[%clk 01:30:57]} {[%emt 00:00:01]} d6 {[%clk 01:30:16]} {[%emt
00:00:44]} 2. d4 {[%clk 01:31:12]} {[%emt 00:00:16]} g6 {[%clk 01:30:38]}
{[%emt 00:00:08]} 3. f4 {[%clk 01:30:17]} {[%emt 00:01:25]} Bg7 {[%clk
01:30:53]} {[%emt 00:00:15]} 4. Nf3 {[%clk 01:29:20]} {[%emt 00:01:27]} Nf6
{[%clk 01:30:21]} {[%emt 00:01:01]} 5. Nc3 {[%clk 01:29:19]} {[%emt 00:00:32]}
O-O {[%clk 01:30:26]} {[%emt 00:00:25]} 6. e5 {[%clk 01:28:36]} {[%emt
00:01:13]} dxe5 {[%clk 01:30:33]} {[%emt 00:00:25]} 7. fxe5 {[%clk 01:29:01]}
{[%emt 00:00:04]} Nd5 {[%clk 01:30:42]} {[%emt 00:00:21]} 8. Bc4 {[%clk
01:28:44]} {[%emt 00:00:46]} Nxc3 {[%clk 01:30:22]} {[%emt 00:00:50]} 9. bxc3
{[%clk 01:29:11]} {[%emt 00:00:04]} c5 {[%clk 01:29:29]} {[%emt 00:01:23]} 10.
O-O {[%clk 01:28:09]} {[%emt 00:01:32]} Nc6 {[%clk 01:29:23]} {[%emt 00:00:36]}
11. Be3 {[%clk 01:20:06]} {[%emt 00:08:34]} a6 {[%clk 01:26:04]} {[%emt
00:03:48]} 12. a4 {[%clk 01:17:11]} {[%emt 00:03:25]} Rb8 {[%clk 01:25:55]}
{[%emt 00:00:38]} 13. Qe2 {[%clk 01:08:14]} {[%emt 00:09:27]} Bg4 {[%clk
01:24:05]} {[%emt 00:02:20]} 14. Rfd1 {[%clk 01:05:20]} {[%emt 00:03:24]} Qd7
{[%clk 01:22:40]} {[%emt 00:01:55]} 15. h3 {[%clk 01:02:20]} {[%emt 00:03:30]}
Bxf3 {[%clk 01:13:20]} {[%emt 00:09:51]} 16. Qxf3 {[%clk 01:00:52]} {[%emt
00:01:58]} e6 {[%clk 01:12:13]} {[%emt 00:01:36]} 17. Qe4 {[%clk 00:57:03]}
{[%emt 00:04:19]} Ne7 {[%clk 01:11:04]} {[%emt 00:01:39]} 18. Bf2 {[%clk
00:51:22]} {[%emt 00:06:11]} Rfc8 {[%clk 01:10:54]} {[%emt 00:00:40]} 19. d5
{[%clk 00:45:29]} {[%emt 00:06:24]} exd5 {[%clk 01:10:42]} {[%emt 00:00:41]} 20.
Bxd5 {[%clk 00:45:57]} {[%emt 00:00:02]} Nxd5 {[%clk 01:10:17]} {[%emt
00:00:55]} 21. Rxd5 {[%clk 00:46:22]} {[%emt 00:00:06]} Qe7 {[%clk 01:10:15]}
{[%emt 00:00:32]} 22. c4 {[%clk 00:44:34]} {[%emt 00:02:18]} Rc7 {[%clk
01:07:10]} {[%emt 00:03:35]} 23. Rad1 {[%clk 00:43:21]} {[%emt 00:01:43]} Re8
{[%clk 01:05:05]} {[%emt 00:02:35]} 24. Bh4 {[%clk 00:40:42]} {[%emt 00:03:09]}
Qe6 {[%clk 01:04:26]} {[%emt 00:01:09]} 25. Rd8 {[%clk 00:37:54]} {[%emt
00:03:18]} Rc8 {[%clk 01:00:14]} {[%emt 00:04:42]} 26. Rxc8 {[%clk 00:34:39]}
{[%emt 00:03:45]} Qxc8 {[%clk 01:00:29]} {[%emt 00:00:15]} 27. Bg3 {[%clk
00:34:50]} {[%emt 00:00:19]} Qc7 {[%clk 00:51:34]} {[%emt 00:09:25]} 28. Re1
{[%clk 00:30:47]} {[%emt 00:04:33]} Qa5 {[%clk 00:49:01]} {[%emt 00:03:03]} 29.
Qxb7 {[%clk 00:28:40]} {[%emt 00:02:37]} Qxa4 {[%clk 00:48:01]} {[%emt
00:01:30]} 30. Qb3 {[%clk 00:28:47]} {[%emt 00:00:23]} Qc6 {[%clk 00:47:26]}
{[%emt 00:01:04]} 31. Qf3 {[%clk 00:27:07]} {[%emt 00:02:10]} Qe6 {[%clk
00:43:25]} {[%emt 00:04:31]} 32. Qd5 {[%clk 00:23:59]} {[%emt 00:03:38]} f6
{[%clk 00:42:08]} {[%emt 00:01:47]} 33. exf6 {[%clk 00:22:54]} {[%emt
00:01:34]} Qxd5 {[%clk 00:40:17]} {[%emt 00:02:22]} 34. Rxe8+ {[%clk 00:23:23]}
{[%emt 00:00:02]} Kf7 {[%clk 00:40:37]} {[%emt 00:00:10]} 35. cxd5 {[%clk
00:23:48]} {[%emt 00:00:05]} 1-0

[Event "Mistrovství Čech mládeže 2023 - HD16"]
[Site "Harrachov, Czech Republic"]
[Date "2023.10.27"]
[Round "8.17"]
[White "Meca, Viktor"]
[Black "Maršík, Ondřej"]
[Result "1-0"]
[TimeControl "90m + 30s"]
[WhiteElo "1559"]
[BlackElo "1459"]

1. e4 {[%clk 01:30:59]} d6 {[%clk 01:29:55]} {[%emt 00:01:06]} 2. d4 {[%clk
01:31:13]} {[%emt 00:00:14]} Nf6 {[%clk 01:30:22]} {[%emt 00:00:05]} 3. Nc3
{[%clk 01:31:20]} {[%emt 00:00:21]} g6 {[%clk 01:30:48]} {[%emt 00:00:05]} 4.
Be3 {[%clk 01:31:24]} {[%emt 00:00:26]} Bg7 {[%clk 01:30:35]} {[%emt 00:00:44]}
5. Qd2 {[%clk 01:31:07]} {[%emt 00:00:45]} O-O {[%clk 01:28:29]} {[%emt
00:02:37]} 6. Bh6 {[%clk 01:31:20]} {[%emt 00:00:17]} c5 {[%clk 01:17:27]}
{[%emt 00:11:32]} 7. Bxg7 {[%clk 01:26:42]} {[%emt 00:05:08]} Kxg7 {[%clk
01:17:39]} {[%emt 00:00:19]} 8. d5 {[%clk 01:27:00]} {[%emt 00:00:12]} a6
{[%clk 01:10:01]} {[%emt 00:08:08]} 9. f4 {[%clk 01:16:30]} {[%emt 00:10:59]}
b5 {[%clk 00:59:33]} {[%emt 00:10:58]} 10. e5 {[%clk 01:07:35]} {[%emt
00:09:26]} Nfd7 {[%clk 00:51:29]} {[%emt 00:08:34]} 11. Nf3 {[%clk 01:01:13]}
{[%emt 00:06:52]} Nb6 {[%clk 00:49:17]} {[%emt 00:02:42]} 12. O-O-O {[%clk
00:58:28]} {[%emt 00:03:15]} Bb7 {[%clk 00:45:12]} {[%emt 00:04:35]} 13. exd6
{[%clk 00:51:18]} {[%emt 00:07:40]} exd6 {[%clk 00:41:43]} {[%emt 00:03:59]} 14.
f5 {[%clk 00:50:36]} {[%emt 00:01:12]} b4 {[%clk 00:32:35]} {[%emt 00:10:11]}
15. Ne4 {[%clk 00:48:26]} {[%emt 00:03:07]} Nxd5 {[%clk 00:26:19]} {[%emt
00:06:46]} 16. Bc4 {[%clk 00:47:43]} {[%emt 00:01:13]} Nf6 {[%clk 00:23:51]}
{[%emt 00:02:58]} 17. Nxd6 {[%clk 00:40:49]} {[%emt 00:07:23]} Bxf3 {[%clk
00:19:03]} {[%emt 00:05:18]} 18. gxf3 {[%clk 00:40:06]} {[%emt 00:01:12]} Nc6
{[%clk 00:15:15]} {[%emt 00:04:20]} 19. fxg6 {[%clk 00:36:33]} {[%emt
00:03:59]} fxg6 {[%clk 00:14:14]} {[%emt 00:01:34]} 20. Qg5 {[%clk 00:29:17]}
{[%emt 00:07:46]} Qd7 {[%clk 00:08:15]} {[%emt 00:07:03]} 21. Qxc5 {[%clk
00:25:53]} {[%emt 00:04:20]} Nh5 {[%clk 00:02:27]} {[%emt 00:06:18]} 22. Bd5
{[%clk 00:24:55]} {[%emt 00:01:28]} Qe7 {[%clk 00:00:57]} {[%emt 00:02:00]} 23.
Bxc6 {[%clk 00:24:36]} {[%emt 00:00:50]} Rac8 {[%clk 00:00:43]} {[%emt
00:00:44]} 24. Nf5+ {[%emt 00:00:10]} 1-0

[Event "Mistrovství Čech mládeže 2023 - HD16"]
[Site "Harrachov, Czech Republic"]
[Date "2023.10.27"]
[Round "8.18"]
[White "Lána, Vincent"]
[Black "Dudarec, Elias"]
[Result "1-0"]
[TimeControl "90m + 30s"]
[WhiteElo "1342"]
[BlackElo "1535"]

1. e4 {[%clk 01:30:55]} {[%emt 00:00:03]} e5 {[%clk 01:30:52]} {[%emt
00:00:08]} 2. Nf3 {[%clk 01:31:11]} {[%emt 00:00:15]} Nc6 {[%clk 01:31:16]}
{[%emt 00:00:06]} 3. Bc4 {[%clk 01:31:34]} {[%emt 00:00:07]} Nf6 {[%clk
01:31:40]} {[%emt 00:00:06]} 4. d4 {[%clk 01:31:49]} {[%emt 00:00:16]} exd4
{[%clk 01:32:00]} {[%emt 00:00:09]} 5. e5 {[%clk 01:32:11]} {[%emt 00:00:07]}
d5 {[%clk 01:32:23]} {[%emt 00:00:08]} 6. Bb5 {[%clk 01:32:35]} {[%emt
00:00:06]} Ne4 {[%clk 01:32:44]} {[%emt 00:00:08]} 7. O-O {[%clk 01:30:38]}
{[%emt 00:02:27]} Bc5 {[%clk 01:28:47]} {[%emt 00:04:28]} 8. Nxd4 {[%clk
01:28:41]} {[%emt 00:02:27]} Bxd4 {[%clk 01:25:52]} {[%emt 00:03:25]} 9. Bxc6+
{[%clk 01:28:38]} {[%emt 00:00:33]} bxc6 {[%clk 01:26:10]} {[%emt 00:00:11]} 10.
Qxd4 {[%clk 01:29:05]} {[%emt 00:00:03]} O-O {[%clk 01:25:38]} {[%emt
00:01:03]} 11. Nc3 {[%clk 01:28:26]} {[%emt 00:01:08]} Ng5 {[%clk 01:08:17]}
{[%emt 00:17:52]} 12. Bf4 {[%clk 01:18:29]} {[%emt 00:10:26]} Ne6 {[%clk
01:07:25]} {[%emt 00:01:22]} 13. Qd2 {[%clk 01:17:25]} {[%emt 00:01:34]} Rb8
{[%clk 01:05:52]} {[%emt 00:02:03]} 14. b3 {[%clk 01:17:15]} {[%emt 00:00:41]}
Ba6 {[%clk 01:05:23]} {[%emt 00:00:59]} 15. Rfd1 {[%clk 01:16:26]} {[%emt
00:01:18]} Qe7 {[%clk 01:03:04]} {[%emt 00:02:50]} 16. Bg3 {[%clk 01:15:07]}
{[%emt 00:01:49]} Rb4 {[%clk 00:59:12]} {[%emt 00:04:22]} 17. Ne2 {[%clk
01:10:09]} {[%emt 00:05:27]} f6 {[%clk 00:49:04]} {[%emt 00:10:40]} 18. exf6
{[%clk 01:08:02]} {[%emt 00:02:36]} Rxf6 {[%clk 00:47:30]} {[%emt 00:02:04]} 19.
Re1 {[%clk 00:54:14]} {[%emt 00:14:17]} Qf8 {[%clk 00:37:40]} {[%emt 00:10:21]}
20. c3 {[%clk 00:52:23]} {[%emt 00:02:21]} Rg4 {[%clk 00:36:24]} {[%emt
00:01:45]} 21. f3 {[%clk 00:51:31]} {[%emt 00:01:22]} Rgg6 {[%clk 00:35:26]}
{[%emt 00:01:29]} 22. Nd4 {[%clk 00:48:39]} {[%emt 00:03:21]} Ng5 {[%clk
00:28:40]} {[%emt 00:07:16]} 23. Re3 {[%clk 00:45:25]} {[%emt 00:03:43]} h5
{[%clk 00:12:21]} {[%emt 00:16:52]} 24. Rae1 {[%clk 00:45:09]} {[%emt
00:00:44]} Kh7 {[%clk 00:11:31]} {[%emt 00:01:20]} 25. Re8 {[%clk 00:43:10]}
{[%emt 00:02:28]} Qc5 {[%clk 00:11:36]} {[%emt 00:00:26]} 26. Kh1 {[%clk
00:33:13]} {[%emt 00:10:27]} Rf8 {[%clk 00:07:29]} {[%emt 00:04:37]} 27. R8e5
{[%clk 00:32:25]} {[%emt 00:01:18]} Nf7 {[%clk 00:01:36]} {[%emt 00:06:23]} 28.
Rxh5+ {[%clk 00:32:50]} {[%emt 00:00:05]} Nh6 {[%clk 00:01:58]} {[%emt
00:00:08]} 29. Bf4 {[%clk 00:31:10]} {[%emt 00:02:09]} Rxf4 {[%clk 00:01:30]}
{[%emt 00:01:00]} 30. Qxf4 {[%clk 00:31:31]} {[%emt 00:00:09]} Qxc3 {[%clk
00:01:43]} {[%emt 00:00:17]} 31. Qe3 {[%clk 00:30:24]} {[%emt 00:01:36]} Qb2
{[%clk 00:01:21]} {[%emt 00:00:52]} 32. g3 {[%clk 00:29:59]} {[%emt 00:00:56]}
Bc8 {[%clk 00:01:06]} {[%emt 00:00:44]} 33. Re2 {[%clk 00:26:48]} {[%emt
00:03:41]} Qb1+ {[%clk 00:01:19]} {[%emt 00:00:17]} 34. Kg2 {[%clk 00:27:09]}
{[%emt 00:00:09]} c5 {[%clk 00:00:56]} {[%emt 00:00:54]} 35. Nc2 {[%clk
00:25:35]} {[%emt 00:02:02]} Ba6 {[%clk 00:00:49]} {[%emt 00:00:39]} 36. Rf2
{[%clk 00:25:34]} {[%emt 00:00:30]} d4 {[%clk 00:00:42]} {[%emt 00:00:38]} 37.
Qe4 {[%clk 00:25:02]} {[%emt 00:01:00]} d3 {[%clk 00:00:37]} {[%emt 00:00:38]}
38. Rg5 {[%clk 00:23:41]} {[%emt 00:01:48]} Qb2 {[%clk 00:00:33]} {[%emt
00:00:36]} 39. Qxg6+ {[%clk 00:23:42]} {[%emt 00:00:29]} Kh8 {[%clk 00:00:57]}
{[%emt 00:00:06]} 40. Qxa6 {[%clk 00:23:23]} {[%emt 00:00:49]} dxc2 {[%clk
00:01:00]} {[%emt 00:00:27]} 41. Qc8+ {[%clk 00:23:30]} {[%emt 00:00:21]} Kh7
{[%clk 00:01:22]} {[%emt 00:00:09]} 42. Rxc5 {[%clk 00:18:33]} {[%emt
00:05:27]} c1=Q {[%clk 00:01:43]} {[%emt 00:00:10]} 43. Rxb2 {[%clk 00:17:51]}
{[%emt 00:01:11]} Qxb2+ {[%clk 00:01:58]} {[%emt 00:00:15]} 44. Kh3 {[%clk
00:17:57]} {[%emt 00:00:23]} Qb1 {[%clk 00:01:30]} {[%emt 00:01:00]} 45. Rxc7
{[%clk 00:15:21]} {[%emt 00:03:06]} Qf1+ {[%clk 00:01:49]} {[%emt 00:00:10]} 46.
Kh4 {[%clk 00:15:50]} {[%emt 00:00:01]} Qxf3 {[%clk 00:01:58]} {[%emt
00:00:22]} 47. Rc4 {[%clk 00:14:54]} {[%emt 00:01:26]} g5+ {[%clk 00:02:06]}
{[%emt 00:00:12]} 48. Kxg5 {[%clk 00:14:39]} {[%emt 00:00:55]} Nf7+ {[%clk
00:01:32]} {[%emt 00:01:04]} 49. Kh4 {[%clk 00:14:33]} {[%emt 00:00:36]} Qf6+
{[%clk 00:01:30]} {[%emt 00:00:31]} 50. Kh3 {[%clk 00:14:07]} {[%emt 00:00:56]}
Qf1+ {[%clk 00:01:34]} {[%emt 00:00:27]} 51. Kh4 {[%clk 00:13:37]} {[%emt
00:00:59]} Qf6+ {[%clk 00:01:50]} {[%emt 00:00:15]} 52. Kh3 {[%clk 00:09:17]}
{[%emt 00:04:48]} Qf1+ {[%clk 00:02:10]} {[%emt 00:00:11]} 53. Kg4 {[%clk
00:08:31]} {[%emt 00:01:15]} Ne5+ {[%clk 00:02:13]} {[%emt 00:00:28]} 54. Kg5
{[%clk 00:08:00]} {[%emt 00:01:01]} Nf7+ {[%clk 00:00:49]} {[%emt 00:01:55]} 55.
Kh5 {[%clk 00:07:41]} {[%emt 00:00:48]} Qe2+ {[%clk 00:00:44]} {[%emt
00:00:35]} 56. Kh4 {[%clk 00:02:54]} {[%emt 00:05:17]} Qe7+ {[%clk 00:00:33]}
{[%emt 00:00:41]} 57. Kh3 {[%clk 00:03:14]} {[%emt 00:00:10]} Ng5+ {[%clk
00:00:35]} {[%emt 00:00:29]} 58. Kg4 {[%clk 00:03:16]} {[%emt 00:00:27]} Nf7
{[%clk 00:00:31]} {[%emt 00:00:34]} 59. Qf5+ {[%clk 00:03:16]} {[%emt
00:00:29]} Kg7 {[%clk 00:00:38]} {[%emt 00:00:24]} 60. Kh3 {[%clk 00:01:17]}
{[%emt 00:02:28]} Ng5+ {[%clk 00:00:42]} {[%emt 00:00:27]} 61. Kg4 {[%clk
00:01:09]} {[%emt 00:00:38]} Nf7 {[%clk 00:01:04]} {[%emt 00:00:08]} 62. Kh3
{[%clk 00:01:25]} {[%emt 00:00:14]} Ng5+ {[%clk 00:01:28]} {[%emt 00:00:06]} 63.
Kg4 {[%clk 00:01:44]} {[%emt 00:00:11]} Nf7 {[%clk 00:01:54]} {[%emt 00:00:04]}
64. Kf3 {[%clk 00:01:50]} {[%emt 00:00:24]} Qb7+ {[%clk 00:00:32]} {[%emt
00:01:52]} 65. Kf4 {[%clk 00:01:32]} {[%emt 00:00:48]} Qb8+ {[%clk 00:00:46]}
{[%emt 00:00:17]} 66. Kf3 {[%clk 00:01:43]} {[%emt 00:00:19]} Qb7+ {[%clk
00:01:09]} {[%emt 00:00:07]} 67. Ke3 {[%clk 00:01:54]} {[%emt 00:00:17]} Qb6+
{[%clk 00:01:12]} {[%emt 00:00:28]} 68. Kd2 {[%clk 00:01:52]} {[%emt 00:00:33]}
Qh6+ {[%clk 00:00:55]} {[%emt 00:00:47]} 69. Kd3 {[%clk 00:01:42]} {[%emt
00:00:37]} Qd6+ {[%clk 00:00:33]} {[%emt 00:00:54]} 70. Kc3 {[%clk 00:01:53]}
{[%emt 00:00:19]} Qd1 {[%clk 00:00:31]} {[%emt 00:00:32]} 71. Qg4+ {[%clk
00:02:10]} 1-0

[Event "Mistrovství Čech mládeže 2023 - HD16"]
[Site "Harrachov, Czech Republic"]
[Date "2023.10.27"]
[Round "8.20"]
[White "Janoušková, Adéla"]
[Black "Bludský, Vít"]
[Result "0-1"]
[TimeControl "90m + 30s"]
[WhiteElo "1638"]
[BlackElo "1525"]

1. e4 {[%clk 01:30:56]} {[%emt 00:00:02]} c5 {[%clk 01:30:55]} {[%emt
00:00:06]} 2. Nf3 {[%clk 01:30:59]} {[%emt 00:00:27]} Nc6 {[%clk 01:31:18]}
{[%emt 00:00:08]} 3. d4 {[%clk 01:31:02]} {[%emt 00:00:26]} cxd4 {[%clk
01:31:41]} {[%emt 00:00:08]} 4. Nxd4 {[%clk 01:31:30]} {[%emt 00:00:01]} g6
{[%clk 01:32:05]} {[%emt 00:00:06]} 5. Nc3 {[%clk 01:31:20]} {[%emt 00:00:40]}
Bg7 {[%clk 01:32:26]} {[%emt 00:00:09]} 6. Nde2 {[%clk 01:31:03]} {[%emt
00:00:47]} Nf6 {[%clk 01:29:21]} {[%emt 00:03:35]} 7. g3 {[%clk 01:31:12]}
{[%emt 00:00:21]} O-O {[%clk 01:28:57]} {[%emt 00:00:54]} 8. Bg2 {[%clk
01:30:52]} {[%emt 00:00:50]} d6 {[%clk 01:28:18]} {[%emt 00:01:09]} 9. O-O
{[%clk 01:30:55]} {[%emt 00:00:27]} Bd7 {[%clk 01:26:23]} {[%emt 00:02:26]} 10.
h3 {[%clk 01:28:25]} {[%emt 00:02:59]} Rc8 {[%clk 01:24:17]} {[%emt 00:02:36]}
11. a4 {[%clk 01:23:17]} {[%emt 00:05:38]} Ne5 {[%clk 01:20:27]} {[%emt
00:04:20]} 12. Ra2 {[%clk 01:12:21]} {[%emt 00:11:26]} Be6 {[%clk 01:19:17]}
{[%emt 00:01:39]} 13. b3 {[%clk 01:11:15]} {[%emt 00:01:37]} Nc6 {[%clk
01:18:31]} {[%emt 00:01:17]} 14. Bb2 {[%clk 00:53:12]} {[%emt 00:18:33]} Qa5
{[%clk 01:10:17]} {[%emt 00:08:44]} 15. Ra1 {[%clk 00:49:54]} {[%emt 00:03:47]}
Rfd8 {[%clk 01:07:11]} {[%emt 00:03:36]} 16. Nd5 {[%clk 00:41:43]} {[%emt
00:08:42]} Nxd5 {[%clk 00:58:46]} {[%emt 00:08:54]} 17. Bxg7 {[%clk 00:40:23]}
{[%emt 00:01:49]} Ne3 {[%clk 00:59:03]} {[%emt 00:00:14]} 18. fxe3 {[%clk
00:40:26]} {[%emt 00:00:27]} Kxg7 {[%clk 00:59:26]} {[%emt 00:00:07]} 19. Nd4
{[%clk 00:39:32]} {[%emt 00:01:24]} Bd7 {[%clk 00:58:29]} {[%emt 00:01:26]} 20.
Qf3 {[%clk 00:37:39]} {[%emt 00:02:23]} Rf8 {[%clk 00:56:03]} {[%emt 00:02:57]}
21. c4 {[%clk 00:32:03]} {[%emt 00:06:06]} Qb6 {[%clk 00:54:55]} {[%emt
00:01:38]} 22. Rad1 {[%clk 00:28:14]} {[%emt 00:04:19]} Ne5 {[%clk 00:51:03]}
{[%emt 00:04:22]} 23. Qf2 {[%clk 00:27:17]} {[%emt 00:01:26]} Qb4 {[%clk
00:49:32]} {[%emt 00:02:02]} 24. g4 {[%clk 00:24:11]} {[%emt 00:03:36]} a6
{[%clk 00:49:05]} {[%emt 00:00:57]} 25. g5 {[%clk 00:21:23]} {[%emt 00:03:17]}
f6 {[%clk 00:42:58]} {[%emt 00:06:39]} 26. Qh4 {[%clk 00:19:53]} {[%emt
00:01:59]} fxg5 {[%clk 00:41:54]} {[%emt 00:01:34]} 27. Qxg5 {[%clk 00:20:05]}
{[%emt 00:00:18]} Rf6 {[%clk 00:41:17]} {[%emt 00:01:07]} 28. Rf4 {[%clk
00:16:14]} {[%emt 00:04:21]} h6 {[%clk 00:39:35]} {[%emt 00:02:12]} 29. Qg3
{[%clk 00:14:06]} {[%emt 00:02:37]} Qc3 {[%clk 00:35:59]} {[%emt 00:04:06]} 30.
Rxf6 {[%clk 00:08:53]} {[%emt 00:05:43]} exf6 {[%clk 00:35:07]} {[%emt
00:01:23]} 31. Nf5+ {[%clk 00:01:16]} {[%emt 00:08:07]} Bxf5 {[%clk 00:35:19]}
{[%emt 00:00:17]} 32. exf5 {[%clk 00:01:41]} {[%emt 00:00:05]} Qxb3 {[%clk
00:35:18]} {[%emt 00:00:32]} 33. Rxd6 {[%clk 00:01:51]} {[%emt 00:00:20]} Qb1+
{[%clk 00:34:59]} {[%emt 00:00:49]} 34. Kh2 {[%clk 00:02:14]} {[%emt 00:00:07]}
Qxf5 {[%clk 00:35:08]} {[%emt 00:00:20]} 35. Rb6 {[%clk 00:01:45]} {[%emt
00:01:00]} Rc7 {[%clk 00:34:17]} {[%emt 00:01:21]} 36. Rxb7 {[%clk 00:01:26]}
{[%emt 00:00:48]} Rxb7 {[%clk 00:34:27]} {[%emt 00:00:20]} 37. Bxb7 {[%clk
00:01:55]} {[%emt 00:00:02]} Qc2+ {[%clk 00:34:44]} {[%emt 00:00:13]} 38. Qg2
{[%clk 00:01:10]} {[%emt 00:01:14]} Qxc4 {[%clk 00:34:39]} {[%emt 00:00:35]} 39.
Qe4 {[%clk 00:00:44]} {[%emt 00:00:56]} Qxe4 {[%clk 00:30:58]} {[%emt
00:04:11]} 40. Bxe4 {[%clk 00:01:12]} {[%emt 00:00:03]} a5 {[%clk 00:31:18]}
{[%emt 00:00:10]} 41. Kg3 {[%clk 00:01:25]} {[%emt 00:00:17]} f5 {[%clk
00:31:34]} {[%emt 00:00:14]} 42. Bc2 {[%clk 00:01:44]} {[%emt 00:00:10]} Kf6
{[%clk 00:31:11]} {[%emt 00:00:54]} 43. Kf4 {[%clk 00:00:47]} {[%emt 00:01:27]}
Nc4 {[%clk 00:31:13]} {[%emt 00:00:28]} 44. Kf3 {[%clk 00:00:41]} {[%emt
00:00:35]} Ke5 {[%clk 00:31:06]} {[%emt 00:00:38]} 45. Ke2 {[%clk 00:00:46]}
{[%emt 00:00:25]} g5 {[%clk 00:30:29]} {[%emt 00:01:06]} 46. Kf3 {[%clk
00:00:52]} {[%emt 00:00:24]} g4+ {[%clk 00:29:54]} {[%emt 00:01:06]} 47. hxg4
{[%clk 00:01:09]} {[%emt 00:00:13]} fxg4+ {[%clk 00:30:13]} {[%emt 00:00:11]}
48. Kf2 {[%clk 00:01:24]} {[%emt 00:00:15]} h5 {[%clk 00:29:09]} {[%emt
00:01:34]} 49. Bb3 {[%clk 00:01:07]} {[%emt 00:00:48]} Nd2 {[%clk 00:27:18]}
{[%emt 00:02:20]} 50. Bf7 {[%clk 00:01:17]} {[%emt 00:00:19]} Ne4+ {[%clk
00:27:06]} {[%emt 00:00:43]} 51. Kg2 {[%clk 00:01:27]} {[%emt 00:00:20]} h4
{[%clk 00:26:59]} {[%emt 00:00:36]} 52. Bh5 {[%clk 00:01:20]} {[%emt 00:00:37]}
Kf5 {[%clk 00:27:19]} {[%emt 00:00:11]} 53. Be8 {[%clk 00:01:39]} {[%emt
00:00:11]} h3+ {[%clk 00:26:09]} {[%emt 00:01:39]} 54. Kg1 {[%clk 00:01:58]}
{[%emt 00:00:11]} Nf6 {[%clk 00:25:32]} {[%emt 00:01:07]} 55. Bc6 {[%clk
00:01:51]} {[%emt 00:00:38]} g3 {[%clk 00:24:51]} {[%emt 00:01:11]} 56. Bb7
{[%clk 00:01:49]} {[%emt 00:00:32]} Ng4 {[%clk 00:23:13]} {[%emt 00:02:08]} 57.
Bc8+ {[%clk 00:01:43]} {[%emt 00:00:36]} Kg5 {[%clk 00:23:29]} {[%emt
00:00:14]} 58. e4 {[%clk 00:01:47]} {[%emt 00:00:25]} Kh4 {[%clk 00:23:46]}
{[%emt 00:00:14]} 59. Bxg4 {[%clk 00:01:14]} {[%emt 00:01:03]} Kxg4 {[%clk
00:24:09]} {[%emt 00:00:07]} 60. e5 {[%clk 00:01:19]} {[%emt 00:00:24]} Kf5
{[%clk 00:24:23]} {[%emt 00:00:17]} 0-1

[Event "Mistrovství Čech mládeže 2023 - HD16"]
[Site "Harrachov, Czech Republic"]
[Date "2023.10.28"]
[Round "9.1"]
[White "Tegda, Vojtěch"]
[Black "Andrle, Filip"]
[Result "1/2-1/2"]
[TimeControl "90m + 30s"]
[WhiteElo "1731"]
[BlackElo "1830"]

1. e4 {[%clk 01:30:58]} {[%emt 00:00:02]} d5 {[%clk 01:30:53]} {[%emt
00:00:07]} 2. exd5 {[%clk 01:31:18]} {[%emt 00:00:10]} Qxd5 {[%clk 01:31:14]}
{[%emt 00:00:09]} 3. Nc3 {[%clk 01:31:33]} {[%emt 00:00:15]} Qe5+ {[%clk
01:31:34]} {[%emt 00:00:10]} 4. Qe2 {[%clk 01:30:23]} {[%emt 00:01:40]} Qxe2+
{[%clk 01:30:38]} {[%emt 00:01:26]} 5. Bxe2 {[%clk 01:30:42]} {[%emt 00:00:10]}
e6 {[%clk 01:23:40]} {[%emt 00:07:29]} 6. d4 {[%clk 01:30:10]} {[%emt
00:01:02]} Nf6 {[%clk 01:23:24]} {[%emt 00:00:45]} 7. Nb5 {[%clk 01:28:36]}
{[%emt 00:02:04]} Na6 {[%clk 01:22:48]} {[%emt 00:01:07]} 8. a3 {[%clk
01:28:39]} {[%emt 00:00:27]} c6 {[%clk 01:20:07]} {[%emt 00:03:11]} 9. Nc3
{[%clk 01:28:16]} {[%emt 00:00:53]} Nc7 {[%clk 01:20:21]} {[%emt 00:00:15]} 10.
Nf3 {[%clk 01:28:28]} {[%emt 00:00:18]} Be7 {[%clk 01:16:58]} {[%emt 00:03:53]}
11. Bd2 {[%clk 01:27:50]} {[%emt 00:01:08]} O-O {[%clk 01:15:53]} {[%emt
00:01:34]} 12. O-O-O {[%clk 01:26:50]} {[%emt 00:01:31]} Ncd5 {[%clk 01:13:01]}
{[%emt 00:03:22]} 13. Bd3 {[%clk 01:25:38]} {[%emt 00:01:42]} Nxc3 {[%clk
01:08:09]} {[%emt 00:05:23]} 14. Bxc3 {[%clk 01:25:48]} {[%emt 00:00:20]} b6
{[%clk 01:07:29]} {[%emt 00:01:10]} 15. Ne5 {[%clk 01:23:09]} {[%emt 00:03:09]}
Bb7 {[%clk 01:07:08]} {[%emt 00:00:52]} 16. f3 {[%clk 01:23:09]} {[%emt
00:00:30]} Rfd8 {[%clk 01:04:32]} {[%emt 00:03:05]} 17. Be1 {[%clk 01:08:47]}
{[%emt 00:14:51]} c5 {[%clk 00:58:56]} {[%emt 00:06:07]} 18. dxc5 {[%clk
01:07:02]} {[%emt 00:02:16]} Bxc5 {[%clk 00:54:35]} {[%emt 00:04:50]} 19. Bh4
{[%clk 01:05:04]} {[%emt 00:02:16]} Bd4 {[%clk 00:42:30]} {[%emt 00:12:46]} 20.
Ng4 {[%clk 01:01:41]} {[%emt 00:03:52]} Nxg4 {[%clk 00:39:22]} {[%emt
00:03:40]} 21. Bxd8 {[%clk 01:02:03]} {[%emt 00:00:07]} Nf2 {[%clk 00:37:48]}
{[%emt 00:02:04]} 22. Bxh7+ {[%clk 00:44:34]} {[%emt 00:18:00]} Kxh7 {[%clk
00:38:02]} {[%emt 00:00:16]} 23. Rxd4 {[%clk 00:45:00]} {[%emt 00:00:04]} Nxh1
{[%clk 00:37:46]} {[%emt 00:00:46]} 24. Bh4 {[%clk 00:45:19]} {[%emt 00:00:10]}
Kh6 {[%clk 00:36:09]} {[%emt 00:02:08]} 25. Rd1 {[%clk 00:44:14]} {[%emt
00:01:34]} g5 {[%clk 00:35:53]} {[%emt 00:00:46]} 26. Be1 {[%clk 00:44:32]}
{[%emt 00:00:12]} g4 {[%clk 00:21:06]} {[%emt 00:15:17]} 27. Bd2+ {[%clk
00:44:44]} {[%emt 00:00:16]} Kh7 {[%clk 00:19:24]} {[%emt 00:02:14]} 28. Rxh1
{[%clk 00:44:55]} {[%emt 00:00:19]} gxf3 {[%clk 00:19:40]} {[%emt 00:00:15]} 29.
gxf3 {[%clk 00:45:17]} {[%emt 00:00:07]} Bxf3 {[%clk 00:17:36]} {[%emt
00:02:34]} 30. Rf1 {[%clk 00:44:55]} {[%emt 00:00:51]} Bh5 {[%clk 00:15:37]}
{[%emt 00:02:30]} 1/2-1/2